[Event "FRA-ch Teams Top 16-B 2022"]
[Site "Chartres"]
[Date "2022.06.09"]
[Round "1.17"]
[White "Kirk, Ezra"]
[Black "Vocaturo, Daniele"]
[Result "0-1"]
[ECO "C68"]
[WhiteElo "2446"]
[BlackElo "2608"]
[Annotator "TA"]
[PlyCount "86"]
[EventDate "2022.06.09"]
[EventType "team-tourn"]
[EventCountry "FRA"]
[SourceTitle "playchess.com"]
[Source "ChessBase"]
[SourceQuality "1"]
[TimeControl "40/5400+30:1800+30"]

{[%evp 11,86,12,9,-42,37,-1,23,-25,-16,-26,-30,-20,-2,-17,424,-25,1055,14,7,0,0,0,16,25,22,-11,-12,-4,-6,-3,-4,-10,-16,-16,-16,-7,-9,-34,-10,-5,-8,-11,-16,-45,-14,-16,0,0,0,0,0,-56,-23,-65,-52,-71,-65,-70,-56,-146,-137,-138,-137,-127,-74,-81,-87,-131,-134,-173,-166,-489,-479,-464,-441,-464,-450]} 1. e4 {[%emt 0:00:05]} e5 {[%emt 0:00:32]} 2. Nf3 {[%emt 0:00:11]} Nc6 {[%emt 0:00:29]} 3. Bb5 {[%emt 0:00:55]} a6 {[%emt 0:00:57]} 4. Bxc6 {[%emt 0:00:38]} dxc6 {[%emt 0:00:13]} 5. O-O {[%emt 0:00:32]} Bd6 {[%emt 0:03:27]} 6. d4 {[%emt 0:12:06]} exd4 {[%emt 0:01:09] [#]} 7. Qd2 $146 {[%emt 1:19:33] C68: Ruy Lopez: Exchange Variation, sidelines.} (7. Qxd4 $11 f6 8. Be3) ({Predecessor:} 7. Qxd4 f6 8. Be3 Ne7 9. Nbd2 Be6 10. Qc3 Qd7 11. Nc4 Bxc4 12. Qxc4 Ng6 13. Nd4 Ne5 14. Qb3 O-O-O 15. f3 Rhe8 16. Rad1 g6 17. Bf2 Bc5 {½-½ (54) McShane,L (2675)-Mamedyarov,S (2772) Germany 2021}) 7... d3 (7... c5 $15) 8. Qxd3 {[%emt 0:00:00]} f6 {[%emt 0:01:16]} 9. Qd4 {[%emt 0:00:00]} (9. Qb3 $142) 9... Be6 {[%emt 0:03:47]} 10. Nbd2 {[%emt 0:00:00]} Ne7 {[%emt 0:03:34]} 11. b3 {[%emt 0:00:00]} O-O {[%emt 0:14:45]} 12. Bb2 {[%emt 0:00:00]} Bb4 $2 {[%emt 0:08:58][%mdl 8192]} 13. Nc4 $2 {[%emt 0:00:00]} (13. Qxb4 $18 a5 14. Qc3 (14. Qxb7 Qd7 $16)) 13... Qd5 $2 {[%emt 0:57:53][%mdl 8192]} 14. c3 $2 (14. exd5 $18 cxd5 15. a3) 14... Qxd4 $11 {[%emt 0:00:00]} 15. Nxd4 {[%emt 0:00:00]} Bxc4 {[%emt 0:00:00]} 16. bxc4 {[%emt 0:00:00]} Bd6 {[%emt 0:00:00]} 17. c5 {[%emt 0:00:00]} Be5 {[%emt 0:00:00]} 18. Ne6 {[%emt 0:00:00]} Rfe8 {[%emt 0:00:00] With the idea ...Ng6.} 19. f4 {[%emt 0:00:00]} Ng6 {[%emt 0:00:00]} 20. Nxg7 {[%emt 0:00:00]} Kxg7 {[%emt 0:00:00]} 21. fxe5 {[%emt 0:00:00]} Nxe5 {[%emt 0:00:00]} 22. c4 {[%emt 0:07:30]} Re6 {[%emt 0:00:00]} 23. Rad1 {[%emt 0:00:00]} Rae8 {[%emt 0:00:00]} 24. Rd4 {[%emt 0:00:00]} b6 {[%emt 0:00:00]} 25. cxb6 {[%emt 0:00:00]} (25. Rd2 {with more complications.} Nxc4 26. Rd7+ Kg6 27. Bc3) 25... cxb6 {[%emt 0:00:00]} 26. c5 {[%emt 0:00:00]} b5 {[%emt 0:00:00]} 27. Bc3 {[%emt 0:00:00]} Kg6 {[%emt 0:00:00]} 28. h3 {[%emt 0:00:31]} R8e7 {[%emt 0:00:00]} 29. Rd8 {[%emt 0:01:42]} h5 {[%emt 0:00:00]} 30. Rfd1 {[%emt 0:00:20]} Nf7 {[%emt 0:00:00]} 31. Rc8 {[%emt 0:00:31]} (31. Rg8+ $11 Kh7 32. Ra8) 31... Ng5 {[%emt 0:00:00]} (31... Re8 {is more complex.} 32. Rc7 Ng5 33. Ra7 Rxe4 34. Rd6 Rf4) 32. e5 {[%emt 0:01:03]} fxe5 {[%emt 0:00:00][%cal Bf6e5,Be5e4,Be4e3,Be3e2][%mdl 32]} 33. Ra8 {[%emt 0:00:45]} Ne4 {[%emt 0:00:00][%csl LRc3,LRc5]} 34. Bb4 {[%emt 0:00:04]} Nf6 $36 {[%emt 0:00:00][%mdl 2048] Black is more active.} 35. Rxa6 {[%emt 0:00:35]} (35. Rd6 $15) 35... Nd5 $17 {[%emt 0:00:00]} 36. Be1 {[%emt 0:00:22]} e4 {[%emt 0:00:00]} 37. a4 {[%emt 0:00:34] And now axb5 would win.} bxa4 {[%emt 0:00:00]} ({Black should play} 37... b4 $1 {White must now prevent ...e3.} 38. a5 e3) 38. Rxa4 {[%emt 0:00:07]} e3 {[%emt 0:00:00]} 39. Ra6 {[%emt 0:01:11]} e2 $1 {[%emt 0:00:13] Black is more active.} 40. Rd3 {[%emt 0:00:23] [#]} Rf7 $1 {[%emt 0:02:13] Hoping for ...Rf1+.} 41. Rf3 {[%emt 0:30:14] Against Rf1+} (41. Rg3+ Kh7 42. Rf3 Rxf3 43. Ra7+ Kg6 44. gxf3) 41... Rxf3 $19 {[%emt 0:30:50] Black is clearly winning.} 42. gxf3 {[%emt 0:00:03] [#]} Nf4 $1 {[%emt 0:00:27]} 43. h4 {[%emt 0:00:00]} Nd3 $1 {[%emt 0:00:00][%csl LRc5,LRe1] What a bad dream for White.  Weighted Error Value: White=0.60/Black=0.32} 0-1

[Event "FRA-ch Teams Top 16-B 2022"]
[Site "Chartres"]
[Date "2022.06.09"]
[Round "1.18"]
[White "Amin, Bassem"]
[Black "Ternault, Mathieu"]
[Result "1-0"]
[ECO "A08"]
[WhiteElo "2686"]
[BlackElo "2367"]
[Annotator "TA"]
[PlyCount "139"]
[EventDate "2022.06.09"]
[EventType "team-tourn"]
[EventCountry "FRA"]
[SourceTitle "playchess.com"]
[Source "ChessBase"]
[SourceQuality "1"]
[TimeControl "40/5400+30:1800+30"]

{[%evp 17,139,13,25,21,22,0,0,0,0,0,0,0,0,-15,-14,-25,0,-11,-16,-17,0,-23,55,83,75,14,182,145,129,77,106,45,60,40,42,14,22,15,52,13,55,43,131,135,133,135,112,100,90,0,8,0,0,0,0,0,70,81,154,150,229,229,236,234,239,235,217,240,233,189,382,328,447,254,240,212,228,234,371,348,400,370,411,401,397,385,410,363,601,575,560,553,441,322,421,408,29979,29979,29979,29980,29980,29977,29979,29980,29972,29973,29972,234,29973,29973,29977,29978,29985,29977,29988,29989,29989,29989,29989,410,29990,29991,29994,29995]} 1. e4 {[%emt 0:01:10]} e6 {[%emt 0:00:17]} 2. d3 {[%emt 0:00:09]} d5 {[%emt 0:00:27]} 3. Nd2 {[%emt 0:00:24]} c5 {[%emt 0:00:33]} 4. g3 {[%emt 0:00:09]} Nc6 {[%emt 0:00:14]} 5. Bg2 {[%emt 0:00:06]} Nf6 {[%emt 0:00:13]} 6. Ngf3 {[%emt 0:00:06]} g6 {[%emt 0:00:13]} 7. O-O {[%emt 0:00:08]} Bg7 {[%emt 0:00:08]} 8. Re1 {[%emt 0:00:05]} O-O {[%emt 0:00:20]} 9. c3 {[%emt 0:00:15]} a5 {[%emt 0:00:43] 9...a5 is better than 9...b6.} 10. a4 {[%emt 0:00:29] A08: King's Indian Attack.} b6 {[%emt 0:00:28]} 11. Nb1 {[%emt 0:00:43][%cal Bd2b1,Bb1a3,Ba3c4][%mdl 32]} e5 {[%emt 0:00:52]} 12. exd5 {[%emt 0:01:12] The position is equal.} Nxd5 {[%emt 0:00:27]} 13. Na3 {[%emt 0:00:44] [#]} h6 $146 {[%emt 1:32:05]} ({Predecessor:} 13... Re8 14. Qb3 h6 15. Ng5 hxg5 16. Qxd5 Bb7 17. Nc4 e4 18. Qxd8 Raxd8 19. Bxg5 f6 20. Bf4 Rxd3 21. Bxe4 Rxe4 22. Rxe4 {1-0 (21) Miroshnichenko,E (2628)-Bajarani,U (2425) Al Ain 2012}) 14. Nc4 {[%emt 0:06:25]} Re8 {[%emt 0:00:00]} ({Much less strong is} 14... Bg4 15. h3 Bxf3 16. Qxf3 $16) 15. h4 {[%emt 0:14:55]} Bg4 {[%emt 0:00:00]} 16. Qc2 {[%emt 0:05:10]} Ra7 {[%emt 0:00:00]} 17. Nh2 {[%emt 0:20:55]} Be6 {[%emt 0:00:00]} 18. Qe2 {[%emt 0:02:16]} f5 {[%emt 0:00:00]} 19. h5 {[%emt 0:26:56]} gxh5 {[%emt 0:00:00]} ({Black should try} 19... g5 $11) 20. Qxh5 $14 {[%emt 0:00:50]} Nf6 {[%emt 0:00:00][%csl LRd3,LRh5] [#]} 21. Qh4 {[%emt 0:03:01] White is more active.} ({Don't go for} 21. Qg6 $2 Ne7 22. Qxe8+ Qxe8 $19) (21. Qe2 $1 $16 Bxc4 22. dxc4) 21... Bd5 {[%emt 0:00:00]} (21... e4 $1 $11 {and Black stays safe.}) 22. Bxd5+ {[%emt 0:00:55]} Nxd5 {[%emt 0:00:00]} 23. Qxd8 {[%emt 0:00:17]} (23. Qh5 $142) 23... Rxd8 {[%emt 0:00:00]} 24. Ra3 {[%emt 0:00:24]} (24. Nf3 $16) 24... Re7 {[%emt 0:00:00]} 25. Nf1 {[%emt 0:02:41]} Re6 {[%emt 0:00:00]} 26. Kg2 {[%emt 0:01:42]} Kf7 {[%emt 0:00:00]} 27. Rb3 {[%emt 0:03:22]} Nce7 {[%emt 0:00:00]} 28. Nfe3 {[%emt 0:04:50]} Rd7 {[%emt 0:01:33]} 29. Rb5 {[%emt 0:01:49]} h5 {[%emt 0:03:25]} ({Black should play} 29... Nxe3+ $14 30. Rxe3 Nd5) 30. Nxd5 $16 {[%emt 0:00:41]} Nxd5 {[%emt 0:00:10] [#]} 31. f4 $1 {[%emt 0:01:09]} Rde7 {[%emt 0:01:16]} 32. fxe5 {[%emt 0:00:49]} Bxe5 {[%emt 0:00:10]} 33. d4 {[%emt 0:00:55]} (33. Rf1 $16 f4 34. d4 (34. gxf4 Rg6+ 35. Kf2 Bxf4 $11) (34. Nxe5+ Rxe5 35. c4 Re2+ 36. Kh3 Nf6 $16)) 33... Bc7 $11 {[%emt 0:02:10]} 34. Rxe6 {[%emt 0:00:48]} (34. Rf1 {with more complications.} Re2+ 35. Rf2 Rxf2+ 36. Kxf2 Re4 37. Ne3) 34... Kxe6 {[%emt 0:00:03]} 35. dxc5 {[%emt 0:00:16]} bxc5 {[%emt 0:00:19]} 36. Bh6 {[%emt 0:00:53] Against Rg7} Rh7 {[%emt 0:00:35]} (36... Re8 $11) 37. Rxc5 $14 {[%emt 0:00:26][%cal Og2f3] White stays focused until the end.} f4 {[%emt 0:01:08]} (37... Rh8 $142) 38. Bxf4 $16 {[%emt 0:00:45]} Nxf4+ {[%emt 0:01:04]} (38... Bxf4 $16 {was necessary.} 39. gxf4 Nxf4+ 40. Kf3 Nd3 41. Rxa5 h4) 39. gxf4 $18 {[%emt 0:00:02]} Bxf4 {[%emt 0:00:09]} 40. Rxa5 $16 {[%emt 0:00:41][%mdl 4096] Endgame KRB-KRN} Rc7 {[%emt 0:00:55]} 41. b3 {[%emt 0:30:55] Threatens to win with Kf3.} h4 {[%emt 0:05:40]} 42. Rh5 {[%emt 0:00:00]} Rg7+ {[%emt 0:02:20]} 43. Kf3 {[%emt 0:00:00]} Bc7 {[%emt 0:07:57]} (43... Bg5 44. a5 Rf7+ 45. Kg4 Bf6) 44. Rh6+ {[%emt 0:00:00]} Kd7 {[%emt 0:01:05]} 45. Rxh4 {[%emt 0:00:00]} (45. a5 $142) 45... Rg3+ $18 {[%emt 0:00:28]} 46. Ke2 {[%emt 0:00:00]} Rxc3 {[%emt 0:00:08]} 47. b4 {[%emt 0:00:00] aiming for Kd2.} Kc6 {[%emt 0:02:12]} (47... Rb3 $142 48. b5 Kc8) 48. Kd2 {[%emt 0:00:00]} Rg3 {[%emt 0:01:14]} 49. Ne3 {[%emt 0:00:00]} Bd8 {[%emt 0:03:57]} 50. Rc4+ {[%emt 0:00:00]} Kb7 {[%emt 0:00:21]} 51. Nf5 {[%emt 0:00:00]} Rh3 {[%emt 0:02:49]} 52. Kc2 {[%emt 0:00:43]} Bf6 $2 {[%emt 0:02:02]} (52... Bc7 53. Re4 Kc6 54. Rc4+ Kb7) 53. Nd6+ {[%emt 0:00:15]} Ka7 {[%emt 0:00:47]} 54. a5 {[%emt 0:01:33] Hoping for Rc7+.} Be5 {[%emt 0:02:05]} 55. Nb5+ {[%emt 0:00:52]} Kb7 {[%emt 0:01:29]} 56. Rc5 {[%emt 0:01:07]} Bh8 {[%emt 0:00:32]} (56... Bf4 $18 57. Rf5 Bb8) 57. Nd6+ {[%emt 0:00:14]} Ka7 {[%emt 0:01:00]} 58. b5 {[%emt 0:00:47][%cal Bb4b5,Bb5b6][%mdl 32]} Bd4 {[%emt 0:02:52]} 59. Rc4 {[%emt 0:02:48]} Bg1 {[%emt 0:00:17]} 60. Rc7+ {[%emt 0:00:28]} Kb8 {[%emt 0:00:04]} 61. b6 {[%emt 0:00:22][%csl Gd6][%cal Rc7c8]} Rh8 {[%emt 0:00:21]} 62. Rb7+ {[%emt 0:00:39]} Ka8 {[%emt 0:00:01]} 63. Rd7 {[%emt 0:00:11]} Kb8 {[%emt 0:01:08]} 64. Kd3 {[%emt 0:00:25]} Bh2 {[%emt 0:00:58]} 65. Kc4 {[%emt 0:00:17]} Bg1 {[%emt 0:00:40]} 66. Kb5 {[%emt 0:00:22]} Bf2 {[%emt 0:00:19]} 67. Kc6 {[%emt 0:00:40]} Bg1 {[%emt 0:00:43]} 68. Rb7+ {[%emt 0:00:11]} Ka8 {[%emt 0:00:05]} 69. Rc7 {[%emt 0:00:03]} Kb8 {[%emt 0:00:36]} 70. b7 {[%emt 0:00:29] Weighted Error Value: White=0.20 (precise) /Black=0.51} 1-0

[Event "FRA-ch Teams Top 16-B 2022"]
[Site "Chartres"]
[Date "2022.06.09"]
[Round "1.19"]
[White "Fantinel, Thibault"]
[Black "Hamdouchi, Hicham"]
[Result "1/2-1/2"]
[ECO "B30"]
[WhiteElo "2388"]
[BlackElo "2536"]
[Annotator "TA"]
[PlyCount "94"]
[EventDate "2022.06.09"]
[EventType "team-tourn"]
[EventCountry "FRA"]
[SourceTitle "playchess.com"]
[Source "ChessBase"]
[SourceQuality "1"]
[TimeControl "40/5400+30:1800+30"]

{[%evp 16,94,25,18,20,17,27,27,27,27,23,26,17,22,19,0,10,-19,-18,-19,-18,-21,-27,-24,-18,-28,-28,-56,-21,-36,-18,-33,-6,-14,0,0,0,0,0,-1,0,0,0,0,0,0,0,0,0,0,0,-8,-7,-8,-8,-8,0,-9,0,0,0,0,0,0,0,0,0,0,0,0,0,-16,0,0,0,0,0,0,0,0,0]} 1. e4 {[%emt 0:00:07]} c5 {[%emt 0:00:08]} 2. Nf3 {[%emt 0:00:06]} Nc6 {[%emt 0:00:07]} 3. Bb5 {[%emt 0:00:15]} e6 {[%emt 0:00:08]} 4. O-O {[%emt 0:00:59]} Nge7 {[%emt 0:00:41][%cal Bg8e7,Be7d5,Bd5f6,Bf6g4][%mdl 32]} 5. Re1 {[%emt 0:00:40]} a6 {[%emt 0:01:20]} 6. Bf1 {[%emt 0:00:24]} d5 {[%emt 0:01:16]} 7. exd5 {[%emt 0:00:49]} Nxd5 {[%emt 0:00:20]} 8. d4 {[%emt 0:00:28]} Nf6 {[%emt 0:03:13]} 9. Be3 {[%emt 0:00:50][%cal Bc1e3,Be3f4,Bf4g3][%mdl 32]} Be7 {[%emt 0:02:06] B30: Sicilian: 2...Nc6 3 Bb5, lines without ...g6.} 10. dxc5 {[%emt 0:01:27]} Qxd1 {[%emt 0:00:52]} 11. Rxd1 {[%emt 0:00:04]} Ng4 {[%emt 0:00:39] White has an edge.} 12. Bf4 {[%emt 0:03:05] Bd6 is the strong threat.} Bxc5 {[%emt 0:00:49]} 13. Bg3 {[%emt 0:00:06] [#]} f6 $146 {[%emt 0:19:09]} ({Predecessor:} 13... h5 14. Rd2 Nf6 15. Nc3 b5 16. Bd3 Bb7 17. a4 b4 18. Ne4 Nxe4 19. Bxe4 Rd8 {½-½ (26) Tsydypov,Z (2558)-Maghsoodloo,P (2676) Chess.com INT 2020}) 14. Nc3 {[%emt 0:08:31]} e5 {[%emt 0:00:35]} 15. Ne4 {[%emt 0:10:55]} Be7 {[%emt 0:02:18]} 16. Nd6+ {[%emt 0:16:59]} Bxd6 {[%emt 0:00:48]} 17. Rxd6 {[%emt 0:00:03]} Nh6 {[%emt 0:02:02]} 18. Rd2 {[%emt 0:09:41]} Nf5 {[%emt 0:07:11]} 19. Ne1 {[%emt 0:00:11]} Be6 {[%emt 0:04:27]} 20. Nd3 {[%emt 0:07:04]} O-O-O {[%emt 0:18:57] And now ...e4 would win.} 21. Rad1 {[%emt 0:00:35]} Nxg3 {[%emt 0:01:10]} 22. hxg3 {[%emt 0:00:24]} Bf5 {[%emt 0:01:42]} 23. c3 {[%emt 0:04:40]} a5 {[%emt 0:03:15]} (23... Rd5 $5 {[%cal Rh8d8]}) 24. f3 {[%emt 0:05:23] The position is equal.} Kc7 {[%emt 0:06:48]} 25. g4 {[%emt 0:04:13]} Bc8 {[%emt 0:02:28]} 26. Kf2 {[%emt 0:02:43]} b6 {[%emt 0:01:03]} 27. b3 {[%emt 0:02:13]} Rd6 {[%emt 0:04:32]} 28. Nb2 {[%emt 0:00:54][%cal Bd3b2,Bb2c4,Bc4d6][%mdl 32]} Rxd2+ {[%emt 0:00:55]} 29. Rxd2 {[%emt 0:00:05]} e4 {[%emt 0:01:09]} 30. Nc4 {[%emt 0:02:24]} exf3 {[%emt 0:00:09]} 31. gxf3 {[%emt 0:00:18]} h5 {[%emt 0:01:41]} 32. gxh5 {[%emt 0:01:08]} Rxh5 {[%emt 0:00:06]} 33. Kg3 {[%emt 0:02:02]} Ne7 {[%emt 0:03:26]} 34. Nd6 {[%emt 0:03:10]} Bd7 {[%emt 0:01:57]} 35. c4 {[%emt 0:03:57] Against Rd5} Bc6 {[%emt 0:01:35]} 36. f4 {[%emt 0:08:19]} Rh1 {[%emt 0:02:21]} 37. Bg2 {[%emt 0:00:52]} Rg1 {[%emt 0:01:21]} 38. Nb5+ {[%emt 0:00:36]} Bxb5 {[%emt 0:01:51]} 39. cxb5 $11 {[%emt 0:00:04][%mdl 4096] Endgame KRB-KRN} Nf5+ {[%emt 0:01:13]} 40. Kh2 {[%emt 0:02:27]} Rc1 {[%emt 0:00:50]} 41. Bh3 {[%emt 0:31:14]} Rc5 {[%emt 0:07:08]} 42. Rg2 {[%emt 0:00:00]} Kd6 {[%emt 0:01:13]} 43. a4 {[%emt 0:00:00]} Nd4 {[%emt 0:02:59] [#] Hoping for ...Nf3+.} 44. Rxg7 {[%emt 0:00:00][%csl Gh3][%cal Rg7d7]} Rc2+ {[%emt 0:00:22]} 45. Kg3 $1 {[%emt 0:00:00]} Rc3+ {[%emt 0:04:16]} 46. Kh2 {[%emt 0:00:00]} Rc2+ {[%emt 0:15:35]} 47. Kg3 {[%emt 0:00:00]} Rc3+ {[%emt 0:00:37] Weighted Error Value: White=0.03 (flawless) /Black=0.04 (flawless)} 1/2-1/2

[Event "FRA-ch Teams Top 16-B 2022"]
[Site "Chartres"]
[Date "2022.06.09"]
[Round "1.20"]
[White "Gharamian, Tigran"]
[Black "Le Hetet, Nicolas"]
[Result "1-0"]
[ECO "B32"]
[WhiteElo "2602"]
[BlackElo "2372"]
[Annotator "TA"]
[PlyCount "59"]
[EventDate "2022.06.09"]
[EventType "team-tourn"]
[EventCountry "FRA"]
[SourceTitle "playchess.com"]
[Source "ChessBase"]
[SourceQuality "1"]
[TimeControl "40/5400+30:1800+30"]

{[%evp 11,59,23,29,20,41,41,47,49,47,45,56,52,56,56,106,113,87,111,120,122,110,125,114,94,142,134,129,84,142,144,149,117,165,168,172,149,216,219,361,336,468,459,479,472,577,572,561,558,626,654]} 1. e4 {[%emt 0:00:06]} c5 {[%emt 0:00:08]} 2. Nf3 {[%emt 0:00:06][%cal Bg1f3,Bf3d4,Bd4b5,Bb5c3,Bc3d5][%mdl 32]} Nc6 {[%emt 0:00:07]} 3. d4 {[%emt 0:00:11]} cxd4 {[%emt 0:00:07]} 4. Nxd4 {[%emt 0:00:06]} e5 {[%emt 0:00:18]} 5. Nb5 {[%emt 0:00:12]} d6 {[%emt 0:00:27]} 6. c4 {[%emt 0:00:59]} Be7 {[%emt 0:01:53] 6...Be6 is the modern continuation.} 7. N5c3 {[%emt 0:01:22] B32: Sicilian: Löwenthal and Kalashnikov Variations.} Be6 {[%emt 0:04:01]} 8. Nd5 {[%emt 0:01:54]} Nf6 {[%emt 0:06:40]} 9. Nbc3 {[%emt 0:01:53] White is slightly better.} Rc8 {[%emt 0:03:46] [#]} 10. Bd3 $146 {[%emt 0:11:25]} ({Predecessor:} 10. Be2 O-O 11. Be3 Ne8 12. O-O f5 13. exf5 Bxf5 14. Bg4 g6 15. Nxe7+ Qxe7 16. Bf3 {1-0 (34) Capellades Subirana,M (2237)-Fuentes Godoy,L (2069) Barcelona 2017}) 10... Nd4 {[%emt 0:04:08]} 11. Nxe7 {[%emt 0:11:39]} Qxe7 {[%emt 0:00:20]} 12. b3 {[%emt 0:00:05]} b5 {[%emt 0:07:45]} (12... a6 $14) 13. Nxb5 $16 {[%emt 0:06:08]} Nxb5 {[%emt 0:02:12]} 14. cxb5 {[%emt 0:00:06]} d5 {[%emt 0:00:10] [#]} 15. exd5 {[%emt 0:04:48]} Nxd5 {[%emt 0:01:43]} 16. O-O {[%emt 0:04:57][%cal Bh1f1,Bf1e1,Be1e4][%mdl 32]} O-O {[%emt 0:03:16]} 17. Re1 {[%emt 0:06:04]} Qb4 {[%emt 0:23:36]} (17... f6 $142) 18. Bb2 {[%emt 0:11:49] This bishop pair is nice.} ({Stronger than} 18. Rxe5 Qc3 19. Rxe6 Qxa1 $15) 18... f6 {[%emt 0:02:35]} 19. Re4 {[%emt 0:06:56]} Qd6 {[%emt 0:05:07]} ({Black should try} 19... Qe7) 20. Rc4 {[%emt 0:04:05]} Rfd8 {[%emt 0:04:27]} 21. Bf1 {[%emt 0:03:03]} Qf8 {[%emt 0:04:35]} (21... Ra8 $16 {might work better.}) 22. Rxc8 $18 {[%emt 0:02:22]} Rxc8 {[%emt 0:01:19]} 23. Rc1 {[%emt 0:00:19]} Nf4 {[%emt 0:02:21]} (23... Rd8 $16) 24. Rxc8 {[%emt 0:01:30]} Bxc8 {[%emt 0:01:52]} (24... Qxc8 $142 25. Bc1 Qc7) 25. Bc1 {[%emt 0:01:16]} Ne6 {[%emt 0:03:47]} 26. Qd5 {[%emt 0:00:55] White is clearly winning.} Qe7 {[%emt 0:02:54]} 27. Qa8 {[%emt 0:02:43]} Qc7 {[%emt 0:02:01]} 28. Be3 {[%emt 0:00:46]} Kf7 {[%emt 0:06:17]} 29. Qxa7 {[%emt 0:00:51]} Bb7 {[%emt 0:00:21]} 30. a4 {[%emt 0:01:51] Weighted Error Value: White=0.04 (flawless) /Black=0.40} 1-0